fUSD/lending_fUSD_20240327
["ID","MTS","AMOUNT","RATE_DAILY","PERIOD"]
[320718775,1711531853877,-500.0,0.00055068,85]
[320718776,1711531853887,-1891.4,0.00055068,120]
[320718777,1711531853897,-5205.21,0.00055068,120]
[320718778,1711531853906,-1087.33,0.00055068,120]
[320718779,1711531853916,-500.0,0.00055068,120]
[320718780,1711531853926,-500.0,0.00055068,120]
[320718781,1711531853935,-2349.37,0.00055068,120]
[320718782,1711531853945,-881.46,0.00055068,120]
[320718783,1711531853954,-524.64,0.00055068,120]
[320718784,1711531853963,-951.7,0.00055068,120]
[320718785,1711531853973,-5965.79,0.00055068,120]
[320718786,1711531853982,-15519.5,0.00055068,120]
[320718787,1711531853991,-500.0,0.00055068,120]
[320718788,1711531854001,-500.0,0.00055068,120]
[320718789,1711531854012,-1461.03,0.00055068,120]
[320718790,1711531854022,-500.0,0.00055068,120]
[320718791,1711531854031,-2049.25,0.00055068,120]
[320718792,1711531854041,-5568.74,0.00055068,120]
[320718793,1711531854051,-500.0,0.00055068,120]
[320718794,1711531854060,-1091.85,0.00055068,120]
[320718795,1711531854069,-2371.9,0.00055068,120]
[320718796,1711531854078,-5312.45,0.00055068,21]
[320718797,1711531854088,-500.0,0.00055068,120]
[320718798,1711531854100,-4946.95,0.00055068,120]
[320718799,1711531854109,-1675.86,0.00055068,120]
[320718800,1711531854119,-857.9,0.00055068,120]
[320718801,1711531854128,-500.0,0.00055068,120]
[320718802,1711531854138,-7260.49,0.00055068,120]
[320718803,1711531854147,-2181.49,0.00055068,120]
[320718804,1711531854156,-20131.11,0.00055068,120]
[320718805,1711531854166,-11042.37,0.00055068,120]
[320718806,1711531854175,-6897.21,0.00055068,120]
[320718807,1711531854184,-651.55,0.00055068,120]
[320718808,1711531854193,-701.95,0.00055068,120]
[320718809,1711531854203,-2130.92,0.00055068,120]
[320718810,1711531854212,-779.79,0.00055068,120]
[320718811,1711531854221,-4603.54,0.00055068,120]
[320718812,1711531854230,-712.79,0.00055068,120]
[320718813,1711531854240,-7358.75,0.00055068,120]
[320718814,1711531854249,-7568.71,0.00055068,120]
[320718815,1711531854258,-500.0,0.00055068,120]
[320718816,1711531854268,-313.82,0.00055068,120]
[320718817,1711531854277,-151.0,0.00055068,120]
[320718818,1711531854287,-18585.37,0.00055068,120]
[320718819,1711531854296,-151.0,0.00055068,120]
[320718820,1711531854307,-1070.33,0.00055068,120]
[320718821,1711531854319,-1202.8,0.00055068,120]
[320718822,1711531854330,-1312.45,0.00055068,120]
[320718823,1711531854340,-2530.08,0.00055068,120]
[320718824,1711531854349,-151.0,0.00055068,120]
[320718825,1711531854358,-273.201252,0.00055068,120]
[320718826,1711531854367,-2457.99,0.00055068,120]
[320718827,1711531854377,-500.0,0.00055068,120]
[320718828,1711531854388,-5452.71,0.00055068,120]
[320718829,1711531854397,-1085.21,0.00055068,120]
[320718830,1711531854407,-2099.27,0.00055068,120]
[320718831,1711531854416,-500.0,0.00055068,120]
[320718832,1711531854425,-2327.39,0.00055068,120]
[320718833,1711531854435,-665.11,0.00055068,120]
[320718834,1711531854444,-1958.13,0.00055068,120]
[320718835,1711531854453,-8602.32,0.00055068,120]
[320718836,1711531854463,-987.71,0.00055068,120]
[320718837,1711531854472,-635.61,0.00055068,120]
[320718838,1711531854481,-788.03,0.00055068,120]
[320718839,1711531854490,-902.58,0.00055068,120]
[320718840,1711531854500,-1292.62,0.00055068,120]
[320718841,1711531854510,-500.0,0.00055068,120]
[320718842,1711531854520,-1555.33,0.00055068,120]
[320718843,1711531854529,-500.0,0.00055068,120]
[320718844,1711531854538,-1456.05,0.00055068,120]
[320718845,1711531854547,-151.0,0.00055068,30]
[320718846,1711531854556,-151.0,0.00055068,30]
[320718847,1711531854565,-500.0,0.00055068,120]
[320718848,1711531854574,-10798.45,0.00055068,120]
[320718849,1711531854583,-1938.92,0.00055068,120]
[320718850,1711531854593,-1854.86,0.00055068,120]
[320718851,1711531854602,-5968.92,0.00055068,120]
[320718852,1711531854612,-1171.98,0.00055068,120]
[320718853,1711531854621,-500.0,0.00055068,120]
[320718854,1711531854630,-1935.06,0.00055068,120]
[320718855,1711531854639,-928.26,0.00055068,120]
[320718856,1711531854648,-158.397024,0.00055068,120]
[320718857,1711531854657,-158.397024,0.00055068,120]
[320718858,1711531854667,-1848.33,0.00055068,120]
[320718859,1711531854676,-1479.48,0.00055068,120]
[320718860,1711531854686,-1536.63,0.00055068,120]
[320718861,1711531854696,-158.397024,0.00055068,120]
[320718862,1711531854705,-158.397024,0.00055068,120]
[320718863,1711531854716,-516.43,0.00055068,120]
[320718864,1711531854725,-569.72,0.00055068,120]
[320718865,1711531854734,-1899.52196,0.0005508,73]
[320718866,1711531854745,-151.41,0.000551,34]
[320718867,1711531854755,-253.987105,0.000551,22]
[320718868,1711531854765,-150.0,0.000551,22]
[320718869,1711531854774,-150.0,0.000551,22]
[320718870,1711531854784,-302.0,0.00055102,4]
[320718871,1711531854794,-844.05033873,0.00055113,120]
[320718872,1711531854803,-178.43,0.000552,30]
[320718873,1711531854814,-167.95611615,0.00055266,120]
[320718874,1711531854823,-152.24,0.000553,120]
[320718876,1711531854832,-268.379999,0.000553,120]
[320718877,1711531854842,-392.04787,0.000553,34]
[320718878,1711531854982,-151.0,0.00055304,14]
[320718879,1711531854992,-151.0,0.00055304,120]
[320718880,1711531855003,-151.0,0.00055304,120]
[320718881,1711531855014,-151.0,0.00055304,30]
[320718882,1711531855023,-151.0,0.00055304,120]
[320718883,1711531855032,-8497.0669857,0.00055304,2]
[320718884,1711531855043,-18187.33693514,0.00055304,2]
[320718885,1711531855068,-47807.67612726,0.00055304,2]
[320718886,1711531855077,-3723.9918575,0.00055304,2]
[320718887,1711531855086,-974.6318333,0.00055304,2]
[320718888,1711531855097,-1084.8361141,0.00055337,120]
[320718889,1711531855106,-3099.8901305,0.00055338,20]
[320718890,1711531855116,-560.0,0.00055342,120]
[320718891,1711531855125,-500.0,0.00055342,120]
[320718892,1711531855134,-190.81343463,0.00055342,120]
[320718893,1711531855143,-500.0,0.00055342,120]
[320718894,1711531855153,-500.0,0.00055342,120]
[320718895,1711531855161,-598.56,0.00055342,120]
[320718896,1711531855170,-500.0,0.00055342,120]
[320718897,1711531855179,-500.0,0.00055342,120]
[320718898,1711531855189,-1041.2,0.00055342,120]
[320718899,1711531855199,-500.0,0.00055342,120]
[320718900,1711531855208,-500.0,0.00055342,120]
[320718901,1711531855217,-500.0,0.00055342,120]
[320718902,1711531855226,-500.0,0.00055342,120]
[320718903,1711531855235,-500.0,0.00055342,120]
[320718904,1711531855245,-151.0,0.00055342,120]
[320718905,1711531855254,-500.0,0.00055342,120]
[320718906,1711531855263,-500.0,0.00055342,120]
[320718907,1711531855272,-500.0,0.00055342,120]
[320718908,1711531855281,-551.79287808,0.00055342,120]
[320718909,1711531855291,-500.0,0.00055342,120]
[320718910,1711531855300,-629.99,0.00055342,120]
[320718911,1711531855309,-510.27,0.00055342,120]
[320718912,1711531855318,-500.0,0.00055342,120]
[320718913,1711531855327,-500.0,0.00055342,120]
[320718914,1711531855336,-500.0,0.00055342,120]
[320718915,1711531855346,-500.0,0.00055342,120]
[320718916,1711531855355,-1206.79,0.00055342,120]
[320718917,1711531855365,-500.0,0.00055342,120]
[320718918,1711531855374,-500.0,0.00055342,120]
[320718919,1711531855383,-500.0,0.00055342,120]
[320718920,1711531855392,-514.80702639,0.00055342,120]
[320718921,1711531855401,-500.0,0.00055342,120]
[320718922,1711531855411,-693.22,0.00055342,120]
[320718923,1711531855420,-500.0,0.00055342,120]
[320718924,1711531855429,-500.0,0.00055342,120]
[320718925,1711531855439,-500.0,0.00055342,120]
[320718926,1711531855448,-633.17,0.00055342,120]
[320718927,1711531855458,-500.0,0.00055342,120]
[320718928,1711531855467,-500.0,0.00055342,120]
[320718929,1711531855477,-527.29120333,0.00055342,120]
[320718930,1711531855487,-500.0,0.00055342,120]
[320718931,1711531855497,-500.0,0.00055342,120]
[320718932,1711531855506,-500.0,0.00055342,120]
[320718933,1711531855518,-613.89292259,0.00055342,120]
[320718934,1711531855527,-566.14,0.00055342,120]
[320718935,1711531855537,-500.0,0.00055342,120]
[320718936,1711531855547,-500.0,0.00055342,120]
[320718937,1711531855557,-500.0,0.00055342,120]
[320718938,1711531855567,-500.0,0.00055342,120]
[320718939,1711531855576,-508.81631819,0.00055342,120]
[320718940,1711531855585,-551.76,0.00055342,120]
[320718941,1711531855596,-535.46,0.00055342,120]
[320718942,1711531855605,-500.0,0.00055342,120]
[320718943,1711531855615,-500.0,0.00055342,120]
[320718944,1711531855624,-151.0,0.00055342,120]
[320718945,1711531855633,-500.0,0.00055342,120]
[320718946,1711531855642,-500.0,0.00055342,120]
[320718947,1711531855652,-535.24,0.00055342,120]
[320718948,1711531855661,-510.33589028,0.00055342,120]
[320718949,1711531855671,-736.96,0.00055342,120]
[320718950,1711531855680,-500.0,0.00055342,120]
[320718951,1711531855690,-512.02610653,0.00055342,120]
[320718952,1711531855698,-500.0,0.00055342,120]
[320718953,1711531855708,-500.0,0.00055342,120]
[320718954,1711531855717,-506.76421852,0.00055342,120]
[320718955,1711531855727,-531.4045678,0.00055342,120]
[320718956,1711531855740,-500.0,0.00055342,120]
[320718957,1711531855750,-516.86,0.00055342,120]
[320718958,1711531855760,-500.0,0.00055342,120]
[320718960,1711531855770,-500.0,0.00055342,120]
[320718961,1711531855780,-563.33,0.00055342,120]
[320718962,1711531855790,-500.0,0.00055342,120]
[320718963,1711531855800,-500.0,0.00055342,120]
[320718964,1711531855811,-592.86,0.00055342,120]
[320718965,1711531855820,-1836.62,0.00055342,120]
[320718966,1711531855830,-151.0,0.00055342,14]
[320718967,1711531855840,-1118.43,0.00055342,120]
[320718968,1711531855852,-272.578601,0.00055342,120]
[320718969,1711531855862,-151.0,0.00055342,120]
[320718970,1711531855871,-500.0,0.00055342,120]
[320718971,1711531855881,-740.02,0.00055342,120]
[320718972,1711531855891,-753.17,0.00055342,120]
[320718973,1711531855901,-1656.49,0.00055342,120]
[320718974,1711531855910,-500.0,0.00055342,120]
[320718975,1711531855919,-500.0,0.00055342,120]
[320718976,1711531855929,-151.0,0.00055342,30]
[320718977,1711531855939,-915.24,0.00055342,120]
[320718978,1711531855948,-1170.35,0.00055342,120]
[320718979,1711531855957,-517.36,0.00055342,120]
[320718980,1711531855967,-500.0,0.00055342,120]
[320718981,1711531855976,-500.0,0.00055342,120]
[320718982,1711531855986,-500.0,0.00055342,120]
[320718983,1711531855995,-579.11,0.00055342,120]
[320718984,1711531856004,-574.86,0.00055342,120]
[320718985,1711531856015,-500.0,0.00055342,120]
[320718986,1711531856025,-680.13,0.00055342,120]
[320718987,1711531856035,-500.0,0.00055342,120]
[320718988,1711531856044,-500.0,0.00055342,120]
[320718989,1711531856055,-874.66,0.00055342,120]
[320718990,1711531856064,-500.0,0.00055342,120]
[320718991,1711531856074,-500.0,0.00055342,120]
[320718992,1711531856083,-670.76,0.00055342,120]
[320718993,1711531856096,-500.0,0.00055342,120]
[320718994,1711531856105,-606.59,0.00055342,120]
[320718995,1711531856115,-610.94,0.00055342,120]
[320718996,1711531856125,-151.0,0.00055342,120]
[320718997,1711531856134,-500.0,0.00055342,120]
[320718998,1711531856144,-500.0,0.00055342,120]
[320718999,1711531856153,-562.52,0.00055342,120]
[320719000,1711531856162,-1071.44,0.00055342,120]
[320719001,1711531856171,-764.04,0.00055342,120]
[320719002,1711531856180,-676.23,0.00055342,120]
[320719003,1711531856195,-802.42,0.00055342,120]
[320719004,1711531856205,-160.3867,0.00055342,120]
[320719005,1711531856215,-160.3867,0.00055342,120]
[320719006,1711531856225,-844.19,0.00055342,120]
[320719007,1711531856235,-1132.52,0.00055342,120]
[320719008,1711531856244,-851.58,0.00055342,120]
[320719009,1711531856254,-500.0,0.00055342,120]
[320719010,1711531856263,-516.24,0.00055342,120]
[320719011,1711531856273,-539.41,0.00055342,120]
[320719012,1711531856283,-681.78,0.00055342,120]
[320719013,1711531856292,-548.74,0.00055342,120]
[320719014,1711531856302,-417.40018238,0.00055342,120]
[320719015,1711531856314,-500.0,0.00055342,120]
[320719016,1711531856325,-677.36,0.00055342,120]
[320719017,1711531856334,-669.94,0.00055342,120]
[320719018,1711531856345,-500.0,0.00055342,120]
[320719019,1711531856354,-755.61,0.00055342,120]
[320719020,1711531856365,-902.14,0.00055342,120]
[320719021,1711531856375,-566.94,0.00055342,120]
[320719022,1711531856384,-704.94,0.00055342,120]
[320719023,1711531856396,-500.0,0.00055342,120]
[320719024,1711531856407,-1074.4,0.00055342,120]
[320719025,1711531856417,-500.0,0.00055342,120]
[320719026,1711531856428,-625.39,0.00055342,120]
[320719027,1711531856438,-702.34,0.00055342,120]
[320719028,1711531856448,-2025.1,0.00055342,120]
[320719029,1711531856457,-500.0,0.00055342,120]
[320719030,1711531856468,-1311.57,0.00055342,120]
[320719031,1711531856477,-544.12,0.00055342,120]
[320719032,1711531856487,-745.46,0.00055342,120]
[320719033,1711531856497,-500.0,0.00055342,120]
[320719034,1711531856507,-500.0,0.00055342,120]
[320719035,1711531856517,-520.99,0.00055342,120]
[320719036,1711531856526,-632.89,0.00055342,120]
[320719037,1711531856536,-508.31,0.00055342,120]
[320719038,1711531856545,-500.0,0.00055342,120]
[320719039,1711531856555,-500.0,0.00055342,120]
[320719040,1711531856565,-573.76,0.00055342,120]
[320719041,1711531856574,-500.0,0.00055342,120]
[320719042,1711531856583,-151.0,0.00055342,120]
[320719043,1711531856595,-151.0,0.00055342,120]
[320719044,1711531856604,-500.0,0.00055342,120]
[320719045,1711531856614,-754.7,0.00055342,120]
[320719046,1711531856623,-608.0,0.00055342,120]
[320719047,1711531856636,-500.0,0.00055342,120]
[320719048,1711531856646,-810.04,0.00055342,120]
[320719049,1711531856655,-151.0,0.00055342,120]
[320719050,1711531856665,-151.0,0.00055342,120]
[320719051,1711531856674,-495.51081214,0.00055342,120]
[320719052,1711531856684,-249.28850583,0.00055342,120]
[320719053,1711531856694,-151.0,0.00055342,120]
[320719054,1711531856703,-151.0,0.00055342,120]
[320719055,1711531856713,-500.0,0.00055342,120]
[320719056,1711531856722,-1121.74,0.00055342,120]
[320719057,1711531856731,-500.0,0.00055342,120]
[320719058,1711531856741,-171.289172,0.00055342,120]
[320719059,1711531856750,-171.289172,0.00055342,120]
[320719060,1711531856759,-517.79,0.00055342,120]
[320719061,1711531856769,-171.289172,0.00055342,120]
[320719062,1711531856778,-171.289172,0.00055342,120]
[320719063,1711531856787,-516.2608201,0.00055342,120]
[320719064,1711531856797,-500.0,0.00055342,120]
[320719065,1711531856806,-611.7,0.00055342,120]
[320719066,1711531856816,-1241.73,0.00055342,120]
[320719067,1711531856825,-151.0,0.00055342,120]
[320719068,1711531856835,-151.0,0.00055342,120]
[320719069,1711531856844,-500.0,0.00055342,7]
[320719070,1711531856854,-760.26,0.00055342,120]
[320719071,1711531856863,-500.0,0.00055342,120]
[320719072,1711531856873,-674.47,0.00055342,120]
[320719073,1711531856882,-1173.96,0.00055342,120]
[320719074,1711531856892,-605.74,0.00055342,120]
[320719075,1711531856901,-507.01550927,0.00055342,120]
[320719076,1711531856912,-500.0,0.00055342,120]
[320719077,1711531856921,-500.0,0.00055342,120]
[320719078,1711531856931,-564.99,0.00055342,120]
[320719079,1711531856941,-667.11,0.00055342,120]
[320719080,1711531856950,-549.9,0.00055342,120]
[320719081,1711531856960,-500.0,0.00055342,120]
[320719082,1711531856970,-500.0,0.00055342,120]
[320719083,1711531856979,-548.74,0.00055342,120]
[320719084,1711531856990,-578.56,0.00055342,120]
[320719085,1711531857001,-528.31,0.00055342,120]
[320719086,1711531857014,-1998.9,0.00055342,120]
[320719087,1711531857024,-399.73,0.00055342,120]
[320719088,1711531857033,-500.0,0.00055342,120]
[320719089,1711531857043,-839.13,0.00055342,120]
[320719090,1711531857054,-500.0,0.00055342,120]
[320719091,1711531857063,-500.0,0.00055342,120]
[320719092,1711531857072,-500.0,0.00055342,120]
[320719093,1711531857082,-645.46,0.00055342,120]
[320719094,1711531857093,-500.0,0.00055342,120]
[320719095,1711531857103,-693.58,0.00055342,120]
[320719096,1711531857113,-652.58,0.00055342,120]
[320719097,1711531857124,-511.86320981,0.00055342,120]
[320719098,1711531857133,-500.0,0.00055342,120]
[320719099,1711531857144,-1267.72,0.00055342,120]
[320719100,1711531857154,-500.0,0.00055342,120]
[320719101,1711531857164,-792.29,0.00055342,120]
[320719102,1711531857173,-631.72,0.00055342,120]
[320719103,1711531857183,-500.0,0.00055342,120]
[320719104,1711531857346,-500.0,0.00055342,120]
[320719105,1711531857357,-906.46,0.00055342,120]
[320719106,1711531857366,-500.0,0.00055342,120]
[320719107,1711531857375,-500.0,0.00055342,120]
[320719108,1711531857385,-500.0,0.00055342,120]
[320719109,1711531857404,-500.0,0.00055342,120]
[320719110,1711531857417,-500.0,0.00055342,120]
[320719111,1711531857427,-500.0,0.00055342,120]
[320719112,1711531857437,-1153.06,0.00055342,120]
[320719113,1711531857446,-500.0,0.00055342,120]
[320719114,1711531857456,-500.0,0.00055342,120]
[320719115,1711531857465,-746.11,0.00055342,120]
[320719116,1711531857475,-717.93,0.00055342,120]
[320719117,1711531857485,-151.0,0.00055342,120]
[320719118,1711531857495,-770.84,0.00055342,120]
[320719119,1711531857507,-509.66,0.00055342,120]
[320719120,1711531857517,-500.0,0.00055342,120]
[320719121,1711531857528,-500.0,0.00055342,120]
[320719122,1711531857538,-500.0,0.00055342,120]
[320719123,1711531857549,-500.0,0.00055342,120]
[320719124,1711531857558,-1239.68,0.00055342,120]
[320719125,1711531857568,-500.0,0.00055342,120]
[320719126,1711531857579,-500.0,0.00055342,120]
[320719127,1711531857589,-1596.95,0.00055342,120]
[320719128,1711531857600,-500.0,0.00055342,120]
[320719129,1711531857611,-500.0,0.00055342,120]
[320719130,1711531857621,-1339.94,0.00055342,120]
[320719131,1711531857631,-1183.42,0.00055342,120]
[320719132,1711531857642,-500.0,0.00055342,120]
[320719133,1711531857652,-500.0,0.00055342,120]
[320719134,1711531857662,-1491.19,0.00055342,120]
[320719135,1711531857672,-500.0,0.00055342,120]
[320719136,1711531857682,-1446.75,0.00055342,120]
[320719137,1711531857694,-340.02990649,0.00055342,120]
[320719138,1711531857704,-515.94,0.00055342,120]
[320719139,1711531857713,-151.0,0.00055342,120]
[320719140,1711531857723,-151.0,0.00055342,120]
[320719141,1711531857732,-500.0,0.00055342,120]
[320719142,1711531857741,-500.0,0.00055342,120]
[320719143,1711531857750,-9255.46,0.00055342,120]
[320719144,1711531857759,-500.0,0.00055342,120]
[320719145,1711531857768,-1027.29,0.00055342,120]
[320719146,1711531857777,-993.13,0.00055342,120]
[320719147,1711531857787,-625.4,0.00055342,120]
[320719148,1711531857796,-500.0,0.00055342,120]
[320719149,1711531857806,-500.0,0.00055342,120]
[320719150,1711531857815,-500.0,0.00055342,120]
[320719151,1711531857824,-6010.57,0.00055342,120]
[320719152,1711531857833,-2479.29,0.00055342,120]
[320719153,1711531857845,-689.69,0.00055342,120]
[320719154,1711531857855,-1543.77,0.00055342,120]
[320719155,1711531857864,-1516.23,0.00055342,120]
[320719156,1711531857874,-1298.51,0.00055342,120]
[320719157,1711531857884,-589.54165347,0.00055342,120]
[320719158,1711531857894,-900.15,0.00055342,120]
[320719159,1711531857904,-7570.24,0.00055342,120]
[320719160,1711531857913,-2518.49,0.00055342,120]
[320719161,1711531857922,-1843.36,0.00055342,120]
[320719162,1711531857935,-8217.31,0.00055342,120]
[320719163,1711531857945,-1951.1,0.00055342,120]
[320719164,1711531857955,-10648.76,0.00055342,120]
[320719165,1711531857964,-815.48,0.00055342,120]
[320719166,1711531857974,-4567.74,0.00055342,120]
[320719167,1711531857984,-5821.4,0.00055342,120]
[320719168,1711531857993,-16192.89,0.00055342,120]
[320719169,1711531858003,-1945.24,0.00055342,120]
[320719170,1711531858017,-14993.94,0.00055342,120]
[320719171,1711531858028,-638.93,0.00055342,120]
[320719172,1711531858038,-607.15,0.00055342,120]
[320719173,1711531858047,-4506.13,0.00055342,120]
[320719174,1711531858059,-975.08,0.00055342,120]
[320719175,1711531858068,-2152.72,0.00055342,120]
[320719176,1711531858078,-500.0,0.00055342,120]
[320719177,1711531858090,-2025.95,0.00055342,120]
[320719178,1711531858102,-834.27,0.00055342,120]
[320719179,1711531858112,-1941.23,0.00055342,120]
[320719180,1711531858121,-500.0,0.00055342,120]
[320719181,1711531858131,-1253.97,0.00055342,120]
[320719182,1711531858141,-474.61,0.00055342,120]
[320719183,1711531858151,-1846.5,0.00055342,120]
[320719184,1711531858161,-718.34,0.00055342,120]
[320719185,1711531858170,-5612.19,0.00055342,120]
[320719186,1711531858180,-2198.64,0.00055342,120]
[320719187,1711531858190,-88899.08,0.00055342,120]
[320719188,1711531858199,-895.87,0.00055342,120]
[320719189,1711531858209,-1956.19,0.00055342,120]
[320719190,1711531858219,-5057.24,0.00055342,120]
[320719191,1711531858228,-500.0,0.00055342,120]
[320719192,1711531858237,-4505.88,0.00055342,120]
[320719193,1711531858247,-831.09,0.00055342,120]
[320719194,1711531858257,-12667.88,0.00055342,120]
[320719195,1711531858267,-2228.45,0.00055342,120]
[320719196,1711531858276,-500.0,0.00055342,120]
[320719197,1711531858286,-49453.04,0.00055342,120]
[320719198,1711531858295,-20350.58,0.00055342,120]
[320719199,1711531858306,-1986.37,0.00055342,120]
[320719200,1711531858315,-33040.61,0.00055342,120]
[320719201,1711531858325,-500.0,0.00055342,7]
[320719202,1711531858335,-500.0,0.00055342,120]
[320719203,1711531858345,-1568.65,0.00055342,120]
[320719204,1711531858356,-1356.91,0.00055342,120]
[320719205,1711531858366,-4171.87,0.00055342,120]
[320719206,1711531858376,-8728.41,0.00055342,120]
[320719207,1711531858385,-1972.92,0.00055342,120]
[320719208,1711531858396,-1671.83,0.00055342,120]
[320719209,1711531858406,-654.94,0.00055342,120]
[320719210,1711531858417,-500.0,0.00055342,120]
[320719211,1711531858427,-1146.86,0.00055342,120]
[320719212,1711531858437,-2325.18,0.00055342,120]
[320719213,1711531858447,-1591.24,0.00055342,120]
[320719214,1711531858457,-500.0,0.00055342,120]
[320719215,1711531858466,-975.38,0.00055342,120]
[320719216,1711531858475,-1189.59,0.00055342,120]
[320719217,1711531858485,-640.39,0.00055342,120]
[320719218,1711531858495,-10580.07,0.00055342,120]
[320719219,1711531858505,-4650.41,0.00055342,120]
[320719220,1711531858515,-500.0,0.00055342,120]
[320719221,1711531858525,-1777.65,0.00055342,120]
[320719222,1711531858535,-524.94,0.00055342,120]
[320719223,1711531858545,-5257.55,0.00055342,120]
[320719224,1711531858555,-2207.18,0.00055342,120]
[320719225,1711531858565,-500.0,0.00055342,120]
[320719226,1711531858574,-779.25,0.00055342,120]
[320719227,1711531858584,-500.0,0.00055342,120]
[320719228,1711531858595,-2469.94,0.00055342,120]
[320719229,1711531858605,-500.0,0.00055342,120]
[320719230,1711531858615,-757.65,0.00055342,120]
[320719231,1711531858625,-552.21,0.00055342,120]
[320719232,1711531858634,-4250.27,0.00055342,120]
[320719233,1711531858646,-4915.26,0.00055342,120]
[320719234,1711531858655,-3918.75,0.00055342,120]
[320719235,1711531858665,-53287.23,0.00055342,120]
[320719236,1711531858675,-500.0,0.00055342,120]
[320719237,1711531858685,-648.69,0.00055342,120]
[320719238,1711531858696,-4113.43,0.00055342,120]
[320719239,1711531858707,-500.0,0.00055342,120]
[320719240,1711531858718,-1576.62,0.00055342,120]
[320719241,1711531858727,-5576.53,0.00055342,120]
[320719242,1711531858737,-3314.77,0.00055342,120]
[320719243,1711531858747,-1034.84,0.00055342,120]
[320719244,1711531858756,-786.38,0.00055342,120]
[320719245,1711531858766,-500.0,0.00055342,85]
[320719246,1711531858775,-5205.21,0.00055342,120]
[320719247,1711531858785,-1891.4,0.00055342,120]
[320719248,1711531858795,-1087.33,0.00055342,120]
[320719249,1711531858805,-189.81161547,0.00055342,120]
[320719250,1711531858815,-601.18,0.00055342,120]
[320719251,1711531858824,-2349.37,0.00055342,120]
[320719252,1711531858834,-881.46,0.00055342,120]
[320719253,1711531858844,-524.64,0.00055342,120]
[320719254,1711531858856,-951.7,0.00055342,120]
[320719255,1711531858865,-5965.79,0.00055342,120]
[320719256,1711531858874,-15519.5,0.00055342,120]
[320719257,1711531858883,-500.0,0.00055342,120]
[320719258,1711531858892,-500.0,0.00055342,120]
[320719259,1711531858901,-1461.03,0.00055342,120]
[320719260,1711531858911,-272.11393687,0.00055342,120]
[320719261,1711531858921,-2049.25,0.00055342,120]
[320719262,1711531858931,-5568.74,0.00055342,120]
[320719263,1711531858942,-500.0,0.00055342,120]
[320719264,1711531858952,-1091.85,0.00055342,120]
[320719265,1711531858961,-2371.9,0.00055342,120]
[320719266,1711531858970,-5312.45,0.00055342,21]
[320719267,1711531858980,-241.25175925,0.00055342,120]
[320719268,1711531858989,-1675.86,0.00055342,120]
[320719269,1711531858999,-4946.95,0.00055342,120]
[320719270,1711531859010,-857.9,0.00055342,120]
[320719271,1711531859022,-500.0,0.00055342,120]
[320719272,1711531859032,-7260.49,0.00055342,120]
[320719273,1711531859041,-2181.49,0.00055342,120]
[320719274,1711531859052,-20131.11,0.00055342,120]
[320719275,1711531859062,-11042.37,0.00055342,120]
[320719276,1711531859072,-6897.21,0.00055342,120]